bitfinex/quotes_BTCUSD_20250422
["timestamp","ask_amount","ask_price","bid_price","bid_amount"]
[1745286770614,0.00426095,88332.0,88331.0,0.10685441]
[1745286771084,0.00426095,88332.0,88331.0,0.11454187]
[1745286771253,0.00426095,88332.0,88331.0,0.11754187]
[1745286771456,0.00426095,88332.0,88331.0,0.02737512]
[1745286771639,0.00526095,88332.0,88331.0,0.0417458]
[1745286772145,0.00526095,88332.0,88331.0,0.3817458]
[1745286772999,0.00526095,88332.0,88331.0,0.37137512]
[1745286773893,0.001,88332.0,88331.0,0.03137512]
[1745286775135,0.001,88332.0,88331.0,0.37137512]
[1745286775425,0.001,88332.0,88331.0,0.38175834]
[1745286776652,0.001,88332.0,88331.0,0.33418117]
[1745286777777,0.001,88332.0,88331.0,0.4010456]
[1745286778010,0.001,88332.0,88331.0,0.56300154]
[1745286778388,0.001,88332.0,88331.0,0.77754239]
[1745286780428,0.27222334,88370.0,88359.0,0.22634923]
[1745286780561,0.01131695,88363.0,88360.0,0.01038322]
[1745286781771,0.0051371,88361.0,88360.0,0.01038322]
[1745286782358,0.0031371,88361.0,88360.0,0.01038322]
[1745286783039,0.0011371,88361.0,88360.0,0.01038322]
[1745286783247,0.0031371,88361.0,88360.0,0.01138322]
[1745286783466,0.0041371,88361.0,88360.0,0.01138322]
[1745286783851,0.00841469,88361.0,88360.0,0.01138322]
[1745286784060,0.0041371,88361.0,88360.0,0.01138322]
[1745286784207,0.00841469,88361.0,88360.0,0.01138322]
[1745286784411,0.00641469,88361.0,88360.0,0.01038322]
[1745286784851,0.00841469,88361.0,88360.0,0.01038322]
[1745286785082,0.23475889,88361.0,88360.0,0.01038322]
[1745286785753,0.00841469,88361.0,88360.0,0.01038322]
[1745286785946,0.00841469,88361.0,88360.0,0.57672998]
[1745286786148,0.0041371,88361.0,88360.0,0.73878592]
[1745286786391,0.0041371,88361.0,88360.0,0.93878592]
[1745286786559,0.01131452,88382.0,88378.0,0.23761561]
[1745286786947,0.23760745,88382.0,88378.0,0.01131503]
[1745286787143,0.01131464,88381.0,88378.0,0.01131503]
[1745286787477,0.22629554,88380.0,88379.0,0.01038322]
[1745286787827,0.22629554,88380.0,88379.0,0.02712925]
[1745286788661,0.22729554,88380.0,88379.0,0.0345789]
[1745286789005,0.22729554,88380.0,88379.0,0.0355789]
[1745286789006,0.22929554,88380.0,88379.0,0.0355789]
[1745286789136,0.22929554,88380.0,88360.0,0.11475594]
[1745286789137,0.2263442,88361.0,88360.0,0.001]
[1745286790069,0.2263442,88361.0,88360.0,0.01783914]
[1745286790285,0.2263442,88361.0,88360.0,0.01983914]
[1745286790884,0.01131695,88363.0,88360.0,0.01983914]
[1745286791089,0.01131656,88366.0,88362.0,0.01131708]
[1745286791267,0.22631494,88373.0,88363.0,0.35131695]
[1745286791465,0.01131592,88371.0,88368.0,0.01131631]
[1745286791682,0.01131605,88370.0,88365.0,0.35131669]
[1745286792101,0.01131618,88369.0,88365.0,0.35131669]
[1745286792442,0.01131618,88369.0,88366.0,0.01131656]
[1745286792785,0.01131605,88370.0,88356.0,0.0162397]
[1745286792979,0.01131618,88369.0,88366.0,0.01131656]
[1745286793398,0.01131618,88369.0,88365.0,0.001]
[1745286793600,0.01131631,88368.0,88365.0,0.001]
[1745286793808,0.01131618,88369.0,88365.0,0.001]
[1745286794327,0.2376354,88371.0,88365.0,0.01231669]
[1745286794529,0.23763989,88369.0,88365.0,0.001]
[1745286794732,0.23763989,88369.0,88359.0,0.01131746]
[1745286794733,0.23764527,88367.0,88359.0,0.01131746]
[1745286794930,0.22633907,88363.0,88361.0,0.34]
[1745286795134,0.22533907,88363.0,88361.0,0.34]
[1745286796341,0.2263442,88361.0,88360.0,0.01822285]
[1745286796956,0.2263442,88361.0,88360.0,0.01922285]
[1745286797152,0.23665602,88363.0,88360.0,0.01722285]
[1745286797358,0.01131695,88363.0,88360.0,0.001]
[1745286797554,0.2376568,88363.0,88361.0,0.001]
[1745286797856,0.2376568,88363.0,88360.0,0.001]
[1745286798240,0.01031733,88360.0,88356.0,0.01131785]
[1745286798435,0.00931733,88360.0,88356.0,0.01131785]
[1745286799430,0.00931733,88360.0,88356.0,0.37205669]
[1745286799969,0.01031733,88360.0,88356.0,0.37205669]
[1745286800387,0.002,88360.0,88357.0,0.01131772]
[1745286800712,0.002,88360.0,88358.0,0.34]
[1745286800870,0.002,88360.0,88359.0,0.56634932]
[1745286801271,0.01131605,88370.0,88367.0,0.34]
[1745286801533,0.01131592,88371.0,88367.0,0.34]
[1745286801721,0.00432792,88369.0,88367.0,0.34]
[1745286801871,0.01131605,88370.0,88367.0,0.34]
[1745286802068,0.00432792,88368.0,88367.0,0.34]
[1745286802267,0.23763941,88370.0,88367.0,0.34]
[1745286802527,0.01131682,88364.0,88359.0,0.35131746]
[1745286802909,0.00432792,88363.0,88360.0,0.01131733]
[1745286803125,0.00432792,88363.0,88360.0,0.01124403]
[1745286803466,0.01131708,88362.0,88358.0,0.01131759]
[1745286803991,0.01131721,88361.0,88357.0,0.34]
[1745286804158,0.01031733,88360.0,88357.0,0.34]
[1745286804871,0.00432792,88359.0,88358.0,0.001]
[1745286805484,0.00432792,88359.0,88356.0,0.03205669]
[1745286805909,0.00432792,88359.0,88357.0,0.001]
[1745286807070,0.00532792,88359.0,88355.0,0.44803784]
[1745286807273,0.003,88359.0,88356.0,0.001]
[1745286807696,0.00432792,88358.0,88356.0,0.01231785]
[1745286807904,0.00432792,88358.0,88356.0,0.01131785]
[1745286808268,0.00432792,88358.0,88356.0,0.03303136]
[1745286808894,0.00632792,88358.0,88356.0,0.03403136]
[1745286809098,0.1052807,88363.0,88357.0,0.01131772]
[1745286809298,0.01131721,88361.0,88357.0,0.01131772]
[1745286809497,0.001,88359.0,88357.0,0.01131772]
[1745286809743,0.001,88359.0,88357.0,0.35131772]
[1745286809933,0.001,88358.0,88357.0,0.35131772]
[1745286810724,0.001,88361.0,88358.0,0.01131759]
[1745286811323,0.001,88361.0,88360.0,0.34]
[1745286812701,0.003,88361.0,88360.0,0.341]
[1745286813028,0.004,88361.0,88360.0,0.341]
[1745286813689,0.005,88361.0,88360.0,0.341]
[1745286814408,0.00491235,88361.0,88360.0,0.341]
[1745286815724,0.00491235,88361.0,88360.0,0.34091186]
[1745286816855,0.00491235,88361.0,88360.0,0.5026678]
[1745286817690,0.00491235,88361.0,88360.0,0.4546678]
[1745286818228,0.00491235,88361.0,88360.0,0.001]
[1745286818854,0.00491235,88361.0,88360.0,0.22734676]
[1745286819258,0.00491235,88361.0,88360.0,0.001]
[1745286820409,0.00491235,88361.0,88360.0,0.22734676]
[1745286821792,0.00491235,88361.0,88360.0,0.001]
[1745286824265,0.00432196,88361.0,88360.0,0.001]
[1745286824883,0.00432196,88361.0,88360.0,0.45475594]
[1745286825087,0.00432196,88361.0,88360.0,0.50245594]
[1745286825491,0.00432196,88361.0,88360.0,0.74855594]
[1745286825726,0.00432196,88361.0,88360.0,0.70345594]
[1745286826471,0.01131567,88373.0,88365.0,0.01131669]
[1745286826472,0.01131605,88370.0,88365.0,0.01131669]
[1745286826724,0.01131618,88369.0,88365.0,0.01131669]
[1745286826878,0.01131605,88370.0,88366.0,0.35131656]
[1745286827055,0.01131605,88370.0,88367.0,0.01131644]
[1745286827258,0.01131618,88369.0,88366.0,0.35131656]
[1745286827458,0.01131618,88369.0,88366.0,0.34]
[1745286827665,0.23863943,88370.0,88367.0,0.23764527]
[1745286827666,0.01231605,88370.0,88367.0,0.23764527]
[1745286827880,0.00894886,88370.0,88367.0,0.23764527]
[1745286828084,0.00794886,88370.0,88367.0,0.23764527]
[1745286828291,0.23763989,88369.0,88365.0,0.35131669]
[1745286829293,0.01131618,88369.0,88365.0,0.35131669]
[1745286829751,0.23764258,88368.0,88364.0,0.01131682]
[1745286829945,0.01131631,88368.0,88365.0,0.23765064]
[1745286830197,0.22634109,88363.0,88361.0,0.34]
[1745286830455,0.01131695,88363.0,88361.0,0.34]
[1745286831242,0.01131695,88363.0,88360.0,0.35231733]
[1745286832501,0.01231695,88363.0,88360.0,0.35231733]
[1745286833033,0.01131695,88363.0,88360.0,0.35231733]
[1745286833266,0.01231695,88363.0,88360.0,0.35231733]
[1745286834143,0.001,88363.0,88360.0,0.57866228]
[1745286834843,0.001,88363.0,88362.0,0.34]
[1745286836088,0.01131669,88365.0,88362.0,0.34]
[1745286836434,0.002,88363.0,88362.0,0.34]
[1745286837169,0.01131669,88365.0,88362.0,0.34]
[1745286837377,0.002,88365.0,88364.0,0.23765168]
[1745286837740,0.01131554,88374.0,88370.0,0.35131605]
[1745286837945,0.05971567,88373.0,88370.0,0.35131605]
[1745286838760,0.0113158,88372.0,88368.0,0.35131631]
[1745286839330,0.01131592,88371.0,88368.0,0.34]
[1745286839607,0.22632353,88370.0,88368.0,0.34]
[1745286840205,0.22532353,88370.0,88368.0,0.34]
[1745286840819,0.22732353,88370.0,88368.0,0.341]
[1745286841611,0.22832353,88370.0,88368.0,0.341]
[1745286843240,0.003,88370.0,88368.0,0.341]
[1745286843448,0.003,88370.0,88368.0,0.56732479]
[1745286844761,0.003,88370.0,88368.0,0.001]
[1745286845640,0.003,88370.0,88368.0,0.2273246]
[1745286847123,0.003,88370.0,88368.0,0.001]
[1745286847959,0.22932334,88370.0,88368.0,0.001]
[1745286848516,0.22633395,88365.0,88363.0,0.22079092]
[1745286848720,0.2740442,88361.0,88360.0,0.001]
[1745286849121,0.003,88370.0,88361.0,0.01454085]
[1745286849323,0.23758418,88390.0,88381.0,0.01131464]
[1745286849534,0.00045778,88390.0,88389.0,0.22627042]
[1745286849934,0.00045778,88390.0,88384.0,0.01131426]
[1745286850157,0.22672906,88390.0,88384.0,0.01131426]
[1745286850353,0.00245778,88390.0,88385.0,0.01131413]
[1745286850723,0.00245778,88390.0,88387.0,0.35131388]
[1745286851100,0.00245778,88390.0,88387.0,0.23758943]
[1745286851300,0.00045778,88390.0,88389.0,0.22627249]
[1745286852138,0.00645778,88390.0,88389.0,0.22727249]
[1745286852687,0.00245778,88390.0,88389.0,0.22627249]
[1745286852898,0.00645778,88390.0,88389.0,0.22727249]
[1745286853300,0.00445778,88390.0,88389.0,0.001]
[1745286853507,0.00545778,88390.0,88389.0,0.22727249]
[1745286858563,0.00545778,88390.0,88389.0,0.001]
[1745286858721,0.00545778,88390.0,88389.0,0.22727249]
[1745286858938,0.00545778,88390.0,88389.0,0.001]
[1745286860177,0.00545778,88390.0,88389.0,0.56727249]
[1745286863109,0.00545778,88390.0,88389.0,0.68102843]
[1745286863436,0.00545778,88390.0,88389.0,0.72652843]
[1745286864333,0.00445778,88390.0,88389.0,0.72652843]
[1745286864676,0.00445778,88390.0,88389.0,0.72552843]
[1745286864876,0.00045778,88390.0,88389.0,0.68002843]
[1745286865103,0.00345778,88390.0,88389.0,0.68002843]
[1745286865305,0.00345778,88390.0,88389.0,0.68102843]
[1745286865646,0.00045778,88390.0,88389.0,0.68102843]
[1745286865904,0.00245778,88390.0,88389.0,0.68102843]
[1745286866079,0.00245778,88390.0,88389.0,0.56727249]
[1745286867460,0.00245778,88390.0,88389.0,0.68102843]
[1745286868386,0.00245778,88390.0,88389.0,0.341]
[1745286868780,0.22872772,88390.0,88389.0,0.001]
[1745286868921,0.27592772,88390.0,88389.0,0.001]
[1745286869314,0.79518366,88390.0,88389.0,0.001]
[1745286869532,0.72882772,88390.0,88389.0,0.001]
[1745286870346,0.01131477,88380.0,88377.0,0.35131516]
[1745286870540,0.2262981,88379.0,88377.0,0.34]
[1745286870752,0.2252981,88379.0,88377.0,0.34]
[1745286871728,0.001,88379.0,88377.0,0.34]
[1745286871976,0.004,88379.0,88377.0,0.341]
[1745286873852,0.004,88379.0,88377.0,0.001]
[1745286874640,0.23030032,88379.0,88377.0,0.001]
[1745286875606,0.004,88379.0,88377.0,0.001]
[1745286878294,0.22630066,88378.0,88377.0,0.001]
[1745286879825,0.23761569,88378.0,88374.0,0.01131554]
[1745286880019,0.23861569,88378.0,88374.0,0.01131554]
[1745286880244,0.24161569,88378.0,88377.0,0.001]
[1745286880649,0.01131567,88373.0,88370.0,0.34]
[1745286880838,0.22631602,88372.0,88370.0,0.34]
[1745286881006,0.22531602,88372.0,88370.0,0.34]
[1745286881328,0.01131592,88371.0,88368.0,0.01131631]
[1745286881905,0.23763719,88370.0,88366.0,0.01131656]
[1745286882325,0.22632627,88368.0,88365.0,0.00840211]
[1745286882524,0.22633613,88365.0,88363.0,0.22098842]
[1745286882722,0.23765694,88363.0,88358.0,0.12263759]
[1745286882958,0.23765282,88365.0,88361.0,0.00834701]
[1745286883152,0.23665069,88365.0,88361.0,0.01131721]
[1745286883351,0.01031669,88365.0,88361.0,0.01131721]
[1745286883722,0.01031669,88365.0,88363.0,0.001]
[1745286883925,0.01031669,88365.0,88362.0,0.01131708]
[1745286884607,0.001,88363.0,88362.0,0.23765706]
[1745286884740,0.01131567,88373.0,88369.0,0.23763832]
[1745286884939,0.0458,88378.0,88377.0,0.22630322]
[1745286885173,0.0458,88378.0,88375.0,0.23762139]
[1745286885344,0.0458,88378.0,88376.0,0.22630411]
[1745286885743,0.0458,88378.0,88375.0,0.23762139]
[1745286885963,0.0458,88378.0,88376.0,0.22630401]
[1745286886921,0.0468,88378.0,88376.0,0.22630401]
[1745286887315,0.0498,88378.0,88376.0,0.001]
[1745286887526,0.0508,88378.0,88376.0,0.001]
[1745286887737,0.22630322,88377.0,88376.0,0.001]
[1745286888892,0.01131567,88373.0,88370.0,0.35131605]
[1745286889097,0.01131567,88373.0,88370.0,0.34]
[1745286889300,0.23662841,88374.0,88371.0,0.01131592]
[1745286889543,0.23662841,88374.0,88370.0,0.34]
[1745286889747,0.01131567,88373.0,88370.0,0.34]
[1745286890012,0.01131554,88374.0,88371.0,0.01131592]
[1745286890218,0.22830322,88377.0,88376.0,0.22630578]
[1745286890219,0.002,88377.0,88376.0,0.22630578]
[1745286890421,0.002,88377.0,88376.0,0.56630578]
[1745286890808,0.01131426,88384.0,88380.0,0.34]
[1745286891105,0.01131439,88383.0,88380.0,0.34]
[1745286891926,0.23760494,88382.0,88377.0,0.22630322]
[1745286892147,0.01131464,88381.0,88378.0,0.01131503]
[1745286894062,0.01231464,88381.0,88378.0,0.01131503]
[1745286894306,0.01631464,88381.0,88378.0,0.01231503]
[1745286895136,0.005,88381.0,88378.0,0.01231503]
[1745286895336,0.005,88381.0,88380.0,0.34]
[1745286896172,0.001,88381.0,88380.0,0.34]
[1745286896344,0.01131439,88383.0,88380.0,0.34]
[1745286896545,0.005,88381.0,88380.0,0.341]
[1745286897061,0.001,88381.0,88380.0,0.34]
[1745286897456,0.001,88381.0,88380.0,0.341]
[1745286899369,0.001,88381.0,88380.0,0.34]
[1745286899570,0.005,88381.0,88380.0,0.341]
[1745286903185,0.005,88381.0,88380.0,0.50035594]
[1745286903388,0.005,88381.0,88380.0,0.70035594]
[1745286904195,0.001,88381.0,88380.0,0.69935594]
[1745286904404,0.0598354,88397.0,88380.0,0.69935594]
[1745286904405,0.0598354,88397.0,88392.0,0.01131324]
[1745286904630,0.00045749,88395.0,88392.0,0.01131324]
[1745286905300,0.00045749,88395.0,88386.0,0.34]
[1745286905301,0.22627762,88387.0,88386.0,0.34]
[1745286906451,0.2376008,88384.0,88381.0,0.35131464]
[1745286906669,0.22628959,88383.0,88381.0,0.34]
[1745286907067,0.01131388,88387.0,88381.0,0.35131464]
[1745286907270,0.01831388,88387.0,88386.0,0.001]
[1745286907478,0.007,88387.0,88386.0,0.001]
[1745286908214,0.005,88387.0,88386.0,0.001]
[1745286908425,0.005,88387.0,88385.0,0.56628018]
[1745286908426,0.01131324,88392.0,88389.0,0.01131362]
[1745286908572,0.01131324,88392.0,88390.0,0.34]
[1745286908770,0.00045749,88395.0,88392.0,0.01131324]
[1745286908952,0.00045749,88395.0,88394.0,0.5662597]
[1745286910451,0.00545749,88395.0,88394.0,0.5672597]
[1745286910633,0.00645749,88395.0,88394.0,0.5672597]
[1745286911980,0.04188218,88397.0,88396.0,0.56625458]
[1745286912198,0.04201937,88397.0,88396.0,0.56625458]
[1745286912368,0.00013719,88397.0,88396.0,0.56625458]
[1745286913178,0.00113719,88397.0,88396.0,0.56725458]
[1745286913383,0.00713719,88397.0,88396.0,0.56725458]
[1745286914416,0.00613719,88397.0,88396.0,0.56725458]
[1745286914712,0.00113719,88397.0,88396.0,0.56625458]
[1745286914916,0.00413719,88397.0,88396.0,0.56625458]
[1745286915466,0.00113719,88397.0,88396.0,0.56625458]
[1745286915666,0.00413719,88397.0,88396.0,0.56625458]
[1745286917307,0.00413719,88397.0,88396.0,0.61615458]
[1745286917756,0.00413719,88397.0,88396.0,0.72991052]
[1745286918063,0.00313719,88397.0,88396.0,0.72991052]
[1745286918269,0.00013719,88397.0,88396.0,0.73091052]
[1745286918853,0.00213719,88397.0,88396.0,0.73091052]
[1745286920203,0.00213719,88397.0,88396.0,0.73797374]
[1745286920423,0.00213719,88397.0,88396.0,0.93797374]
[1745286922270,0.0004229,88405.0,88397.0,0.35454085]
[1745286922493,0.00138318,88416.0,88415.0,0.56620596]
[1745286923247,0.00138318,88416.0,88415.0,0.57326918]
[1745286924002,0.00238318,88416.0,88415.0,0.57326918]
[1745286924149,0.00238318,88416.0,88415.0,0.59942997]
[1745286924354,0.00238318,88416.0,88415.0,0.71318591]
[1745286925845,0.00438318,88416.0,88415.0,0.71318591]
[1745286926227,0.00238318,88416.0,88415.0,0.71318591]
[1745286926349,0.00138318,88416.0,88415.0,0.71318591]
[1745286926542,0.00338318,88416.0,88415.0,0.71318591]
[1745286927195,0.00438318,88416.0,88415.0,0.71318591]
[1745286931694,0.00438318,88416.0,88415.0,0.72354125]
[1745286932936,0.00438318,88416.0,88415.0,0.71318591]
[1745286935448,0.00438318,88416.0,88415.0,0.72354904]
[1745286938575,0.00438318,88416.0,88415.0,0.73808989]
[1745286939568,0.00238318,88416.0,88415.0,0.73808989]
[1745286939963,0.00138318,88416.0,88415.0,0.73808989]
[1745286940325,1e-08,88426.0,88423.0,0.01130927]
[1745286940676,0.00013715,88426.0,88425.0,0.63062122]
[1745286940823,0.0472,88455.0,88432.0,0.58070332]
[1745286940824,5.715e-05,88433.0,88432.0,0.58070332]
[1745286941014,5.715e-05,88433.0,88432.0,0.70152248]
[1745286941205,5.715e-05,88433.0,88432.0,0.81236248]
[1745286941476,0.01130531,88454.0,88432.0,0.81236248]
[1745286941477,0.23746459,88435.0,88433.0,0.34]
[1745286941651,0.22615736,88434.0,88433.0,0.45375594]
[1745286941852,0.27335736,88434.0,88433.0,0.34]
[1745286942453,0.27335736,88434.0,88433.0,0.34706127]
[1745286942694,0.01130735,88438.0,88433.0,0.00706127]
[1745286943043,0.23746236,88436.0,88434.0,0.00706127]
[1745286943233,0.23746236,88436.0,88434.0,0.0174244]
[1745286943574,0.23746236,88436.0,88435.0,0.00706127]
[1745286943820,0.01130761,88436.0,88435.0,0.00706127]
[1745286944226,0.01230761,88436.0,88435.0,0.00706127]
[1745286944728,0.01130761,88436.0,88435.0,0.00706127]
[1745286945087,0.01330761,88436.0,88435.0,0.00706127]
[1745286945726,0.002,88436.0,88435.0,0.00706127]
[1745286945930,0.003,88436.0,88435.0,0.00706127]
[1745286946135,0.002,88436.0,88435.0,0.00706127]
[1745286946470,0.002,88436.0,88435.0,0.0174311]
[1745286946471,0.003,88436.0,88435.0,0.0174311]
[1745286947424,0.003,88436.0,88435.0,0.3574311]
[1745286948950,0.003,88436.0,88435.0,0.0174311]
[1745286949390,0.003,88436.0,88435.0,0.47118704]
[1745286950159,0.002,88436.0,88435.0,0.47118704]
[1745286950358,0.01130607,88448.0,88445.0,0.01130646]
[1745286950560,0.2374406,88444.0,88439.0,0.35130722]
[1745286951115,0.01130684,88442.0,88440.0,0.01036983]
[1745286951319,0.01130684,88442.0,88441.0,0.00706051]
[1745286951726,0.01130658,88444.0,88441.0,0.00706051]
[1745286951877,0.01130658,88444.0,88441.0,0.34706051]
[1745286952078,0.01130607,88448.0,88443.0,0.23743866]
[1745286952278,0.01130646,88445.0,88442.0,0.01743034]
[1745286952483,0.226134,88444.0,88442.0,0.01743034]
[1745286952681,0.226134,88444.0,88443.0,0.00706051]
[1745286952881,0.227134,88444.0,88443.0,0.00706051]
[1745286953081,0.227134,88444.0,88443.0,0.01743034]
[1745286953440,0.322834,88444.0,88443.0,0.01743034]
[1745286955335,0.324834,88444.0,88443.0,0.01743034]
[1745286955550,0.325834,88444.0,88443.0,0.01743034]
[1745286957791,0.32239243,88444.0,88443.0,0.01743034]
[1745286962014,0.27499243,88444.0,88443.0,0.01743034]
[1745286963727,0.27924669,88444.0,88443.0,0.01743083]
[1745286967844,0.0113062,88447.0,88443.0,0.01843083]
[1745286968045,0.226134,88444.0,88443.0,0.01843083]
[1745286969257,0.226134,88444.0,88443.0,0.01843219]
[1745286970198,0.227134,88444.0,88443.0,0.01843219]
[1745286970491,0.228134,88444.0,88443.0,0.01843219]
[1745286970846,0.277834,88444.0,88443.0,0.01843219]
[1745286974653,0.43798994,88444.0,88443.0,0.01843219]
[1745286974870,0.84548994,88444.0,88443.0,0.01843219]
[1745286975083,0.0961,88425.0,88398.0,0.22624871]
[1745286975299,0.0961,88425.0,88412.0,0.34]
[1745286975502,0.2262034,88416.0,88402.0,0.10147871]
[1745286975708,0.22623666,88403.0,88402.0,0.09016675]
[1745286975912,0.22623666,88403.0,88402.0,0.09030389]
[1745286976124,0.22623666,88403.0,88402.0,0.00013714]
[1745286977091,0.22723666,88403.0,88402.0,0.00013714]
[1745286977449,0.22623666,88403.0,88402.0,0.00013714]
[1745286977653,0.22723666,88403.0,88402.0,0.00013714]
[1745286979532,0.3409926,88403.0,88402.0,0.00013714]
[1745286980456,0.3399926,88403.0,88402.0,0.00013714]
[1745286980659,0.3419926,88403.0,88402.0,0.00013714]
[1745286981823,0.3429926,88403.0,88402.0,0.00013714]
[1745286982167,0.3409926,88403.0,88402.0,0.00013714]
[1745286982374,0.3459926,88403.0,88402.0,0.00013714]
[1745286983844,0.7534926,88403.0,88402.0,0.00013714]
[1745286993934,0.01131388,88387.0,88384.0,0.01131426]
[1745286994137,0.01131388,88387.0,88384.0,0.00045749]
[1745286994334,0.01131388,88387.0,88384.0,0.03530743]
[1745286994534,0.01131388,88387.0,88384.0,0.02399317]
[1745286994740,0.22628255,88386.0,88384.0,0.02399317]
[1745286995109,0.23759392,88387.0,88384.0,0.02399317]
[1745286995110,0.22628274,88385.0,88384.0,0.02399317]
[1745286995701,0.23763104,88373.0,88367.0,0.01131644]
[1745286996000,0.01131592,88371.0,88369.0,0.00013719]
[1745286996401,0.22630706,88376.0,88369.0,0.00013719]
[1745286996603,0.01131528,88376.0,88372.0,0.0113158]
[1745286996859,0.01131528,88376.0,88372.0,0.3513158]
[1745286997033,0.01131452,88382.0,88379.0,0.0113149]
[1745286997229,0.2262981,88379.0,88378.0,0.34]
[1745286997727,0.22631947,88371.0,88369.0,0.00013719]
[1745286998760,0.22631947,88371.0,88369.0,0.00113719]
[1745286999367,0.11375594,88370.0,88369.0,0.00113719]
[1745286999527,0.16195594,88370.0,88369.0,0.00113719]
[1745287000388,0.16195594,88370.0,88369.0,0.00013719]
[1745287000906,0.63481947,88371.0,88369.0,0.00013719]
[1745287001313,0.63381947,88371.0,88369.0,0.00013719]
[1745287001540,0.002,88370.0,88369.0,0.00013719]
[1745287002076,0.001,88370.0,88369.0,0.00013719]
[1745287002395,0.63481947,88371.0,88369.0,0.00013719]
[1745287003508,0.63381947,88371.0,88369.0,0.00013719]
[1745287003809,0.003,88370.0,88369.0,0.00013719]
[1745287004721,0.001,88370.0,88369.0,0.01051742]
[1745287005048,0.11375594,88370.0,88369.0,0.01051742]
[1745287005248,0.11475594,88370.0,88369.0,0.01051742]
[1745287005505,0.22632883,88367.0,88366.0,1e-08]
[1745287005703,0.74758477,88367.0,88366.0,1e-08]
[1745287005876,0.79638477,88367.0,88366.0,1e-08]
[1745287006077,0.90686477,88367.0,88366.0,1e-08]
[1745287006965,0.90786477,88367.0,88366.0,1e-08]
[1745287007304,0.95606477,88367.0,88366.0,1e-08]
[1745287007701,0.95606477,88367.0,88354.0,0.000845]
[1745287007702,0.95606477,88367.0,88359.0,1e-08]
[1745287007905,0.27455957,88355.0,88354.0,1e-08]
[1745287008109,0.38831551,88355.0,88354.0,1e-08]
[1745287009030,0.44301646,88355.0,88354.0,1e-08]
[1745287009794,0.44501646,88355.0,88354.0,1e-08]
[1745287010231,0.44701646,88355.0,88354.0,1e-08]
[1745287010438,0.44301646,88355.0,88354.0,1e-08]
[1745287010638,0.44501646,88355.0,88354.0,1e-08]
[1745287011262,0.44701646,88355.0,88354.0,1e-08]
[1745287013282,0.85451646,88355.0,88354.0,1e-08]
[1745287021011,0.86988553,88355.0,88354.0,1e-08]
[1745287021438,0.85451646,88355.0,88354.0,1e-08]
[1745287023752,0.96483646,88355.0,88354.0,1e-08]
[1745287024952,0.85451646,88355.0,88354.0,1e-08]
[1745287025320,0.96483646,88355.0,88354.0,1e-08]
[1745287025790,0.97937731,88355.0,88354.0,1e-08]
[1745287026194,0.22638519,88345.0,88344.0,1e-08]
[1745287026396,0.22638519,88345.0,88341.0,0.0012454]
[1745287026397,0.22639288,88342.0,88341.0,1e-08]
[1745287026575,0.34014882,88342.0,88341.0,1e-08]
[1745287027595,0.45046882,88342.0,88341.0,1e-08]
[1745287028157,0.45046882,88342.0,88341.0,0.01041737]
[1745287028520,0.22639288,88342.0,88341.0,0.01748733]
[1745287028893,0.22739288,88342.0,88341.0,0.01748733]
[1745287029663,0.22639288,88342.0,88341.0,0.01748733]
[1745287029877,0.22639288,88342.0,88341.0,0.01848733]
[1745287030630,0.22639288,88342.0,88341.0,0.01948733]
[1745287032682,0.22639288,88342.0,88341.0,0.01241737]
[1745287033727,0.01132028,88337.0,88334.0,0.0008456]
[1745287033920,0.22641082,88335.0,88334.0,0.0008456]
[1745287034199,0.34016676,88335.0,88334.0,0.0008456]
[1745287035692,0.0497,88334.0,88320.0,0.0008456]
[1745287036015,0.22642876,88328.0,88320.0,0.0008456]
[1745287036219,0.3401847,88328.0,88320.0,0.0008456]
[1745287037391,0.3441847,88328.0,88320.0,0.0008456]
[1745287039733,0.7516847,88328.0,88320.0,0.0008456]
[1745287039941,0.22644671,88321.0,88320.0,0.0008456]
[1745287040108,0.79740265,88321.0,88320.0,0.0008456]
[1745287042019,0.79740265,88321.0,88320.0,0.0028456]
[1745287042219,0.79740265,88321.0,88320.0,0.0018456]
[1745287042844,0.79740265,88321.0,88320.0,0.0008456]
[1745287043480,0.79740265,88321.0,88313.0,0.0008452]
[1745287043704,0.79740265,88321.0,88305.0,0.0008466]
[1745287043705,0.22648517,88306.0,88305.0,0.0008466]
[1745287043891,0.34024111,88306.0,88305.0,0.0008466]
[1745287045090,0.34024111,88306.0,88305.0,0.00092952]
[1745287045746,0.34124111,88306.0,88305.0,0.00092952]
[1745287046097,0.34224111,88306.0,88305.0,0.00092952]
[1745287046602,0.34124111,88306.0,88305.0,0.00092952]
[1745287046846,0.34224111,88306.0,88305.0,0.00092952]
[1745287047182,0.22848517,88306.0,88305.0,0.00092952]
[1745287047789,0.22848517,88306.0,88305.0,0.01842403]
[1745287048291,0.22648517,88306.0,88305.0,0.01842403]
[1745287048450,0.22648517,88306.0,88305.0,0.01942403]
[1745287052756,0.22648517,88306.0,88305.0,0.01235193]
[1745287052953,0.01132323,88314.0,88307.0,0.22648261]
[1745287053198,0.22647434,88311.0,88309.0,0.0451]
[1745287053401,0.23779795,88311.0,88309.0,0.0451]
[1745287054307,0.01132323,88314.0,88309.0,0.0451]
[1745287054504,0.22645813,88317.0,88311.0,0.01132361]
[1745287054719,0.0113222,88322.0,88314.0,0.01132323]
[1745287054971,0.23776208,88324.0,88319.0,0.01132259]
[1745287055169,0.01132207,88323.0,88320.0,0.0451]
[1745287055344,0.23776616,88323.0,88320.0,0.0451]
[1745287055553,0.22644414,88322.0,88321.0,0.00707053]
[1745287056762,0.22644414,88322.0,88320.0,0.002]
[1745287057535,0.22744414,88322.0,88320.0,0.002]
[1745287057747,0.22646722,88313.0,88312.0,0.22098842]
[1745287057948,0.22646722,88313.0,88308.0,0.0467]
[1745287057949,0.22647548,88310.0,88308.0,0.0467]
[1745287058766,0.22547548,88310.0,88308.0,0.0467]
[1745287058990,0.22447548,88310.0,88308.0,0.0467]
[1745287059183,0.01132361,88311.0,88308.0,0.0467]
[1745287059568,0.22647491,88310.0,88308.0,0.0477]
[1745287060602,0.22647491,88310.0,88308.0,0.0487]
[1745287060781,0.22647491,88310.0,88308.0,0.0477]
[1745287061162,0.22647491,88310.0,88308.0,0.0497]
[1745287061548,0.22647491,88310.0,88308.0,0.0477]
[1745287062103,0.22647491,88310.0,88308.0,0.0497]
[1745287065859,0.01132323,88314.0,88310.0,0.34]
[1745287066059,0.01132323,88314.0,88310.0,0.57779865]
[1745287066370,0.01132272,88318.0,88314.0,0.23778743]
[1745287066586,0.2377625,88324.0,88318.0,0.22645187]